bitfinex/quotes_SOLUSD_20240930
["timestamp","ask_amount","ask_price","bid_price","bid_amount"]
[1727730136065,30.145484,157.02,156.99,6.3698]
[1727730136550,23.776884,157.02,156.99,6.3698]
[1727730137244,6.367,157.06,157.02,22.2896]
[1727730138141,1.59224199,157.05,156.92,15.8464]
[1727730138333,6.3717,156.95,156.9,15.9336]
[1727730138647,24.79179607,157.0,156.88,15.8464]
[1727730138850,23.776884,156.95,156.89,15.934]
[1727730139063,23.776884,156.97,156.88,15.8464]
[1727730139064,1.59323596,156.96,156.93,6.3722]
[1727730139432,1.59323596,156.96,156.92,6.3726]
[1727730140249,23.776884,156.95,156.91,15.9319]
[1727730140432,1.59325999,156.94,156.91,22.3048]
[1727730141356,1.59325999,156.94,156.92,6.3726]
[1727730141654,23.776884,156.95,156.92,6.3726]
[1727730141950,23.776884,156.96,156.92,6.3726]
[1727730143428,23.776884,156.94,156.92,6.3726]
[1727730143628,1.59328971,156.93,156.92,6.3726]
[1727730143847,1.59328971,156.93,156.91,15.9319]
[1727730144051,1.59328971,156.93,156.91,22.3049]
[1727730144260,1.59328971,156.93,156.91,15.9319]
[1727730144649,23.776884,156.92,156.91,15.9319]
[1727730144833,23.776884,156.92,156.89,6.3738]
[1727730145034,1.59352235,156.91,156.89,6.3738]
[1727730146552,23.776884,156.93,156.9,6.3734]
[1727730147639,23.776884,156.94,156.9,6.3734]
[1727730148356,23.776884,156.94,156.91,6.373]
[1727730151455,23.776884,156.95,156.91,6.373]
[1727730154356,23.776884,156.95,156.92,6.3726]
[1727730155961,1.5933326,156.94,156.92,6.3726]
[1727730156142,23.776884,156.95,156.9,15.9333]
[1727730156352,23.776884,156.95,156.91,6.3729]
[1727730156538,1.59337542,156.94,156.91,6.3729]
[1727730157054,23.776884,156.95,156.91,6.3729]
[1727730157561,23.776884,156.96,156.91,6.3729]
[1727730157756,1.5933555,156.94,156.91,6.3729]
[1727730158843,23.776884,156.97,156.91,6.3729]
[1727730159057,6.61946755,157.0,156.91,0.42319842]
[1727730159263,6.61946755,157.0,156.97,6.3706]
[1727730159560,15.5913,157.01,156.97,6.3706]
[1727730160051,21.9605,157.01,156.97,6.3706]
[1727730160945,23.776884,157.0,156.97,6.3706]
[1727730163060,23.776884,157.0,156.96,15.9273]
[1727730163247,23.776884,157.01,156.98,6.3701]
[1727730163847,6.3679,157.04,156.99,6.3695]
[1727730164151,6.3679,157.04,157.0,6.3693]
[1727730165165,23.776884,157.03,157.0,6.3693]
[1727730165547,23.776884,157.04,157.0,6.3693]
[1727730165959,30.144684,157.04,157.0,6.3693]
[1727730168870,23.776884,157.02,157.0,6.3693]
[1727730169180,1.59252196,157.01,156.99,6.3697]
[1727730169958,30.144684,157.04,156.98,22.2954]
[1727730169959,6.3688,157.02,156.98,22.2954]
[1727730170160,25.36948462,157.01,156.98,22.2954]
[1727730171754,23.776884,157.01,156.98,22.2954]
[1727730176274,1.59260206,157.0,156.98,22.2954]
[1727730177282,23.776884,157.01,156.98,22.2954]
[1727730180575,23.776884,156.99,156.91,16.3931]
[1727730180775,8.86779607,157.02,156.93,6.3721]
[1727730180776,23.776884,156.97,156.93,6.3721]
[1727730181079,1.59306687,156.96,156.93,6.3721]
[1727730185658,1.59306687,156.96,156.92,21.9617]
[1727730185863,1.59306687,156.96,156.93,6.3722]
[1727730186886,1.59306687,156.96,156.94,6.3717]
[1727730187360,23.776884,156.97,156.94,6.3717]
[1727730187876,1.59304004,156.96,156.94,6.3717]
[1727730193285,23.776884,156.97,156.94,6.3717]
[1727730193465,1.5930396,156.96,156.94,6.3717]
[1727730193866,1.59303486,156.95,156.94,6.3717]
[1727730195270,23.776884,156.97,156.94,6.3717]
[1727730197263,23.776884,156.97,156.92,21.9617]
[1727730197264,23.776884,156.97,156.92,15.9309]
[1727730197469,30.147484,156.97,156.93,6.372]
[1727730198400,30.147484,156.97,156.92,15.9309]
[1727730198401,23.776884,156.97,156.94,6.3716]
[1727730198770,1.59305776,156.96,156.94,6.3716]
[1727730200789,23.776884,156.97,156.94,6.3716]
[1727730201491,1.59304327,156.96,156.94,6.3716]
[1727730202481,23.776884,156.97,156.94,6.3716]
[1727730205395,1.59303994,156.96,156.94,6.3716]
[1727730206004,23.776884,156.97,156.94,6.3716]
[1727730209697,21.54651069,157.04,156.91,59.49897703]
[1727730209905,21.54651069,157.04,156.98,6.3698]
[1727730209906,6.60971462,157.04,156.98,6.3698]
[1727730210081,24.39316309,157.06,156.98,6.3698]
[1727730210275,17.65186835,157.05,156.98,6.3698]
[1727730211089,23.776884,157.03,156.98,6.3698]
[1727730211304,24.26362866,157.05,156.98,6.3698]
[1727730212586,23.776884,157.04,156.98,6.3698]
[1727730213803,23.776884,157.04,157.0,6.3693]
[1727730214097,23.776884,157.04,156.98,15.9252]
[1727730214098,6.3675,157.05,156.98,16.346477]
[1727730214283,6.3675,157.05,157.01,6.3689]
[1727730215497,23.776884,157.04,157.01,6.3689]
[1727730216985,30.144684,157.04,157.0,6.3693]
[1727730218793,1.59239219,157.03,157.0,6.3693]
[1727730219189,30.144684,157.04,157.0,6.3693]
[1727730219408,23.776884,157.04,157.01,6.3689]
[1727730220402,30.144684,157.04,157.0,22.2925]
[1727730221507,23.776884,157.04,157.01,6.369]
[1727730223693,1.59225108,157.03,157.01,6.369]
[1727730224215,23.776884,157.04,157.01,6.369]
[1727730224420,23.776884,157.04,157.0,15.9232]
[1727730224610,23.776884,157.05,157.02,6.3684]
[1727730226811,23.776884,157.06,157.02,15.9211]
[1727730227420,23.776884,157.04,156.99,22.1143]
[1727730227720,23.776884,157.02,156.99,28.484]
[1727730227923,1.59241569,157.01,156.99,28.484]
[1727730229720,1.59241569,157.01,156.99,28.4841]
[1727730231010,1.59241569,157.01,157.0,6.3694]
[1727730233126,23.776884,157.03,157.0,6.3694]
[1727730233302,25.36927941,157.03,157.0,6.3694]
[1727730234609,23.776884,157.03,157.0,6.3694]
[1727730234816,1.59239351,157.02,157.0,6.3694]
[1727730237504,23.776884,157.03,157.0,6.3694]
[1727730243817,1.59238243,157.02,157.0,6.3694]
[1727730245029,23.776884,157.03,157.0,6.3694]
[1727730246433,1.5923782,157.02,157.0,6.3694]
[1727730248115,23.776884,157.01,156.95,6.0662]
[1727730248320,23.776884,157.01,156.97,6.3703]
[1727730248321,1.59264415,157.0,156.97,6.3703]
[1727730249336,23.776884,156.99,156.93,31.4165]
[1727730249534,30.147584,156.97,156.93,22.302]
[1727730249720,1.59301274,156.96,156.93,22.302]
[1727730257019,30.147584,156.97,156.93,22.302]
[1727730258246,1.59302941,156.96,156.93,22.302]
[1727730258950,30.147584,156.97,156.93,22.302]
[1727730260847,23.776884,156.97,156.94,6.3718]
[1727730262252,1.59301018,156.96,156.94,6.3718]
[1727730262625,23.776884,156.97,156.94,6.3718]
[1727730263328,23.776884,156.98,156.95,6.3713]
[1727730264347,1.59292401,156.97,156.94,6.3717]
[1727730265228,30.147084,156.98,156.94,6.3717]
[1727730265736,1.59292111,156.97,156.94,6.3717]
[1727730265935,30.147084,156.98,156.94,6.3717]
[1727730266652,1.59293006,156.97,156.94,6.3717]
[1727730267146,30.147084,156.98,156.94,6.3717]
[1727730267362,23.776884,156.98,156.95,6.3714]
[1727730267533,23.776884,156.98,156.91,6.101]
[1727730267732,23.776884,156.96,156.9,15.9331]
[1727730267931,7.96471468,156.95,156.91,6.373]
[1727730268752,1.59321468,156.95,156.92,6.3726]
[1727730268958,1.59317563,156.94,156.92,6.3726]
[1727730269139,6.3711,156.96,156.92,6.3726]
[1727730269454,23.776884,156.95,156.92,6.3726]
[1727730269833,1.5931724,156.94,156.92,6.3726]
[1727730273046,23.776884,156.95,156.9,15.9331]
[1727730273248,6.59018628,157.02,156.97,6.3706]
[1727730273453,16.1516,157.03,156.96,15.9273]
[1727730273454,22.52,157.03,156.96,15.9273]
[1727730273751,22.52,157.03,156.98,6.3699]
[1727730274134,16.1516,157.03,156.98,6.3699]
[1727730274343,6.3686,157.02,156.98,6.3699]
[1727730275059,1.592538,157.01,156.98,6.3699]
[1727730276842,23.776884,157.01,156.98,6.3699]
[1727730278674,1.59253638,157.0,156.98,6.3699]
[1727730282171,23.776884,157.01,156.98,6.3699]
[1727730283177,25.36941816,157.01,156.98,6.3699]
[1727730292562,23.776884,157.01,156.98,6.3699]
[1727730293268,1.59254876,157.0,156.98,6.3699]
[1727730294276,23.776884,156.99,156.96,22.2981]
[1727730294473,1.5926821,156.98,156.96,22.2981]
[1727730296884,23.776884,156.99,156.96,22.2981]
[1727730297582,25.36960953,156.99,156.96,22.2981]
[1727730297984,25.36960953,156.99,156.93,15.9301]
[1727730298167,6.3711,156.96,156.93,15.9301]
[1727730298786,1.59301534,156.95,156.93,15.9301]
[1727730299174,6.3707,156.97,156.93,22.3023]
[1727730299481,1.59298523,156.96,156.93,22.3023]
[1727730301094,7.96438523,156.96,156.9,15.933]
[1727730301386,23.776884,156.94,156.9,15.933]
[1727730301564,1.59321827,156.93,156.9,22.3061]
[1727730302564,1.59321827,156.93,156.9,15.933]
[1727730302771,6.3707,156.97,156.93,6.3722]
[1727730302976,23.776884,156.96,156.93,6.3722]
[1727730303984,6.3697,157.0,156.96,6.3709]
[1727730304191,1.59267705,156.99,156.96,6.3709]
[1727730305965,16.5876,157.02,156.96,6.3709]
[1727730306171,23.776884,156.99,156.96,6.3709]
[1727730306387,25.36958522,156.99,156.96,6.3709]
[1727730307873,23.776884,156.99,156.96,6.3709]
[1727730308476,1.59270215,156.98,156.96,6.3709]
[1727730308683,23.776884,156.99,156.96,6.3709]
[1727730308993,25.36958355,156.99,156.96,6.3709]
[1727730309593,25.36958546,156.99,156.96,6.3709]
[1727730312798,23.776884,156.99,156.96,6.3709]
[1727730312982,25.3695803,156.99,156.96,6.3709]
[1727730313395,23.776884,156.99,156.96,6.3709]
[1727730313779,25.36958016,156.99,156.96,6.3709]
[1727730314389,25.36958016,156.99,156.94,15.9292]
[1727730314584,31.73948016,156.99,156.95,6.3714]
[1727730316174,30.146784,156.99,156.95,6.3714]
[1727730316580,23.776884,156.97,156.95,6.3714]
[1727730319674,1.59285881,156.96,156.95,6.3714]
[1727730322388,1.59285881,156.96,156.89,21.7715]
[1727730322586,23.776884,156.95,156.91,15.9318]
[1727730322818,1.59309114,156.94,156.92,6.3725]
[1727730325801,23.776884,156.93,156.9,9.96720612]
[1727730326003,7.96610935,156.92,156.9,3.40376264]
[1727730326220,1.59340935,156.92,156.9,3.40376264]
[1727730326389,23.776884,156.93,156.9,3.40376264]
[1727730326596,23.776884,156.94,156.91,6.373]
[1727730327890,6.3713,156.96,156.92,6.3725]
[1727730328094,23.776884,156.95,156.92,6.3725]
[1727730328291,6.053462,157.0,156.92,15.9313]
[1727730328513,6.3703,156.98,156.94,6.3715]
[1727730328899,6.3699,156.99,156.95,6.3711]
[1727730329416,7.96309646,156.98,156.94,22.3008]
[1727730329910,15.2178,157.01,156.94,15.9293]
[1727730330211,23.776884,156.98,156.95,6.3714]
[1727730330392,1.59289015,156.97,156.95,6.3714]
[1727730332897,23.776884,156.98,156.95,6.3714]
[1727730333099,1.59287483,156.97,156.95,6.3714]
[1727730334117,23.776884,156.98,156.95,6.3714]
[1727730334483,1.59287081,156.99,156.96,6.371]
[1727730337086,23.776884,157.03,156.96,15.9273]
[1727730337310,23.776884,157.01,156.96,15.9273]
[1727730337512,23.776884,156.99,156.97,6.3706]
[1727730338315,23.776884,156.99,156.96,22.2982]
[1727730338907,23.776884,156.99,156.97,6.3706]
[1727730339109,23.776884,157.0,156.97,6.3706]
[1727730339913,1.59266585,156.99,156.97,6.3706]
[1727730340412,23.776884,157.0,156.97,6.3706]
[1727730341421,23.776884,157.01,156.98,6.3701]
[1727730341625,1.59260208,157.0,156.98,6.3701]
[1727730342513,23.776884,156.99,156.98,6.3701]
[1727730344014,30.146384,157.0,156.96,22.298]
[1727730347827,1.59272842,156.99,156.97,6.3705]
[1727730348012,23.776884,156.98,156.97,6.3705]
[1727730352903,23.776884,156.99,156.96,22.2983]
[1727730353129,1.59276036,156.98,156.96,22.2983]
[1727730353511,23.776884,156.97,156.96,15.9273]
[1727730354838,23.776884,156.97,156.96,22.2983]
[1727730359221,22.49310459,157.04,156.96,22.2983]
[1727730359222,6.3693,157.01,156.97,6.3705]
[1727730359532,23.776884,157.0,156.97,6.3705]
[1727730360116,23.776884,157.0,156.98,6.3702]
[1727730360320,25.36948542,156.99,156.98,6.3702]
[1727730360538,23.776884,156.98,156.96,15.9273]
[1727730360716,1.59276222,156.97,156.96,22.2982]
[1727730361118,25.36964622,156.97,156.96,15.9273]
[1727730361435,23.776884,156.97,156.96,15.9273]
[1727730362219,23.776884,156.97,156.96,22.2983]
[1727730368933,6.57340459,157.04,156.92,20.0]
[1727730369131,6.3685,157.03,156.99,6.3698]
[1727730369920,15.6098,157.05,157.01,6.3687]
[1727730370148,17.74996151,157.09,157.01,6.3687]
[1727730370149,6.3673,157.06,157.01,6.3687]
[1727730371125,16.95930877,157.09,157.02,6.3685]
[1727730371326,6.3667,157.07,157.02,6.3685]
[1727730372248,15.3671,157.09,157.02,6.3685]
[1727730372427,6.367,157.06,157.02,6.3685]
[1727730372630,23.776884,157.05,157.02,6.3685]
[1727730373732,25.36892059,157.05,157.02,6.3685]
[1727730373928,23.776884,157.05,157.0,15.9232]
[1727730374126,6.3687,157.02,156.97,22.2967]
[1727730374328,23.776884,157.0,156.95,6.1992]
[1727730374544,30.147084,156.98,156.94,22.3009]
[1727730374842,1.59274735,156.97,156.94,15.9292]
[1727730375048,1.59274735,156.97,156.95,6.3714]
[1727730375946,23.776884,156.96,156.91,37.7343]
[1727730376253,1.59295359,156.95,156.92,6.3725]
[1727730378640,23.776884,156.94,156.91,28.5043]
[1727730379037,23.776884,156.95,156.91,28.5043]
[1727730380146,23.776884,156.95,156.92,6.3726]
[1727730384159,1.59305477,156.94,156.92,6.3726]
[1727730386235,1.59305477,156.94,156.91,22.3051]
[1727730386463,23.776884,156.93,156.91,22.3051]
[1727730386641,6.3731,156.91,156.89,6.5699752]
[1727730386846,6.3731,156.91,156.87,28.7024]
[1727730387147,23.776884,156.9,156.88,6.3742]
[1727730388037,23.776884,156.9,156.87,22.3278]
[1727730388038,23.776884,156.9,156.87,15.9359]
[1727730388237,23.776884,156.9,156.87,22.3103]
[1727730388434,25.3705042,156.9,156.87,22.3103]
[1727730388635,25.37050425,156.9,156.87,22.3103]
[1727730389254,23.776884,156.9,156.87,22.3103]
[1727730390841,23.776884,156.91,156.87,22.3103]
[1727730392764,23.776884,156.91,156.88,6.3742]
[1727730393342,23.776884,156.89,156.88,6.3742]
[1727730394466,15.9289,156.95,156.87,15.9359]
[1727730394653,23.776884,156.92,156.89,6.3736]
[1727730395048,6.3719,156.94,156.9,6.3734]
[1727730395358,1.5933401,156.93,156.9,6.3734]
[1727730396546,23.776884,156.92,156.9,6.3734]
[1727730396746,23.776884,156.93,156.9,6.3734]
[1727730397875,6.3711,156.96,156.92,6.3726]
[1727730398064,1.59332673,156.97,156.91,15.9325]
[1727730398065,6.3709,156.97,156.93,6.372]
[1727730399371,23.776884,156.96,156.93,6.372]
[1727730399745,1.59305101,156.95,156.93,6.372]
[1727730400060,23.776884,156.94,156.93,6.372]
[1727730402760,15.9927,156.98,156.92,0.42327979]
[1727730403065,23.776884,156.97,156.94,6.3718]
[1727730411270,23.776884,156.95,156.94,6.3718]
[1727730418463,30.147884,156.96,156.93,15.9301]
[1727730418678,23.776884,156.94,156.93,15.9301]
[1727730420585,23.776884,156.94,156.93,22.3023]
[1727730421486,23.776884,156.94,156.93,15.9301]
[1727730422982,23.776884,156.94,156.93,22.3023]
[1727730423166,23.776884,156.97,156.93,22.3023]
[1727730423367,30.147484,156.97,156.93,22.3023]
[1727730424165,30.147484,156.97,156.94,6.3718]
[1727730424382,23.776884,156.97,156.94,6.3718]
[1727730424585,23.776884,156.98,156.95,6.3711]
[1727730425291,25.36966444,156.98,156.95,6.3711]
[1727730425466,15.3257,157.02,156.93,27.1839631]
[1727730425668,6.3695,157.0,156.93,27.1839631]
[1727730426478,6.3691,157.01,156.96,6.3707]
[1727730426867,23.776884,157.0,156.96,6.3707]
[1727730427280,23.776884,157.01,156.97,6.3705]
[1727730427479,30.146184,157.01,156.96,6.3709]
[1727730428486,23.776884,156.99,156.96,6.3709]
[1727730429272,15.3257,157.02,156.97,6.3704]
[1727730429583,28.53882671,157.04,156.99,6.3697]
[1727730429584,6.57912671,157.04,156.99,6.3697]
[1727730429791,6.3674,157.05,156.98,11.6752484]
[1727730429971,6.3674,157.05,157.0,22.2924]
[1727730430287,6.3678,157.04,157.0,22.2924]
[1727730430790,6.3678,157.04,157.0,15.9231]
[1727730431082,23.776884,157.03,157.0,15.9231]
[1727730431275,30.145084,157.03,156.99,6.3697]
[1727730432868,30.145084,157.03,156.98,11.2538631]
[1727730433192,23.776884,157.0,156.97,15.926]
[1727730433395,23.776884,157.0,156.9,6.1822]
[1727730433396,23.776884,156.98,156.9,6.1822]
[1727730433689,23.776884,157.0,156.9,6.1822]
[1727730433690,23.776884,156.96,156.9,6.1822]
[1727730433884,1.59299498,156.95,156.9,6.1822]
[1727730434479,1.59299498,156.95,156.91,22.3049]
[1727730436392,30.148284,156.96,156.92,6.3724]
[1727730436688,23.776884,156.96,156.92,6.3724]
[1727730438085,23.776884,156.96,156.91,27.1860631]
[1727730438276,23.776884,156.96,156.94,6.3717]
[1727730438471,6.3699,156.99,156.93,27.1841631]
[1727730438675,6.3699,156.99,156.95,6.3714]
[1727730439080,6.3697,157.0,156.96,6.371]
[1727730439281,6.3697,157.0,156.95,6.3713]
[1727730439972,23.776884,156.99,156.95,6.3713]
[1727730441349,23.776884,156.99,156.94,11.6762512]
[1727730441482,23.776884,157.0,156.95,15.9282]
[1727730441681,23.776884,157.0,156.96,6.3707]
[1727730441875,23.776884,157.0,156.97,6.3705]
[1727730442075,23.776884,157.01,156.98,6.3699]
[1727730443007,25.36934108,157.01,156.98,6.3699]
[1727730443186,25.36934108,157.01,156.97,15.9261]
[1727730443375,30.145984,157.01,156.97,22.2966]
[1727730451784,23.776884,157.02,156.99,6.3695]
[1727730451987,6.3679,157.04,157.0,6.3693]
[1727730453506,23.776884,157.03,157.0,6.3693]
[1727730456502,23.776884,157.04,157.01,6.3689]
[1727730458711,30.144684,157.04,157.01,6.3689]
[1727730461420,30.144684,157.04,157.0,18.04417589]
[1727730463327,30.144684,157.04,157.0,6.3692]
[1727730465006,30.144684,157.04,157.0,6.79021853]
[1727730465904,30.144684,157.04,157.0,6.3692]
[1727730470002,30.144684,157.04,157.0,6.79021981]
[1727730470329,30.144684,157.04,157.0,6.3692]
[1727730471347,30.144684,157.04,157.0,6.7902133]
[1727730474630,30.144684,157.04,157.0,6.3692]
[1727730474822,30.144684,157.04,157.01,6.369]
[1727730478852,30.144684,157.04,157.01,6.78995078]
[1727730480210,23.776884,157.04,157.01,6.78995078]
[1727730480423,23.776884,157.08,157.02,6.3685]
[1727730480932,23.776884,157.05,157.02,6.3685]
[1727730483846,23.776884,157.05,157.02,6.78919989]
[1727730484141,30.144284,157.05,157.02,6.78919989]
[1727730484310,30.144284,157.05,157.02,6.3685]
[1727730485638,6.3688,157.02,157.0,16.1983]
[1727730485937,30.145184,157.03,156.97,27.1799631]
[1727730486114,23.776884,157.03,156.97,27.1799631]
[1727730486321,23.776884,157.03,156.99,6.3694]
[1727730486516,23.776884,157.03,157.0,6.3693]
[1727730488644,6.3679,157.04,157.0,6.3693]
[1727730492440,6.3679,157.04,156.99,27.1781631]
[1727730492441,6.58713224,157.09,157.08,6.3661]
[1727730492643,0.5298714,157.14,157.08,11.2538631]
[1727730492848,0.5298714,157.14,157.13,6.3641]
[1727730493026,0.5298714,157.14,157.13,6.78193485]
[1727730494145,0.2598596,157.16,157.13,6.80893485]
[1727730494449,0.2598596,157.16,157.15,37.6171631]
[1727730494635,0.2598596,157.16,157.15,26.3633]
[1727730494828,0.2598596,157.16,157.15,37.6171631]
[1727730495350,0.2598596,157.16,157.15,6.3633]
[1727730502451,0.2598596,157.16,157.15,17.6171631]
[1727730503633,0.2598596,157.16,157.15,18.03393009]
[1727730504158,0.2598596,157.16,157.15,17.6171631]
[1727730506529,0.2598596,157.16,157.15,18.03366765]
[1727730506730,0.2598596,157.16,157.15,18.03366536]
[1727730506949,0.2598596,157.16,157.15,17.6171631]
[1727730508150,0.2598596,157.16,157.15,38.03313337]
[1727730509453,21.7565,157.26,157.15,38.03313337]
[1727730509454,23.776884,157.25,157.21,6.3608]
[1727730509749,21.7565,157.26,157.22,6.77624097]
[1727730510157,21.7565,157.26,157.21,17.6146631]
[1727730510451,23.776884,157.25,157.21,17.6146631]
[1727730510645,23.776884,157.25,157.22,0.41584273]
[1727730511152,23.776884,157.25,157.21,17.6146631]
[1727730512350,30.136284,157.25,157.21,17.6146631]
[1727730513035,30.136284,157.25,157.22,0.41583909]
[1727730513868,23.776884,157.25,157.22,0.41583909]
[1727730514150,23.776884,157.25,157.22,6.77633909]
[1727730514551,39.5921074,157.3,157.22,11.66970219]
[1727730514754,6.3585,157.27,157.23,6.77539553]
[1727730515348,23.776884,157.26,157.22,15.9006]
[1727730515552,6.3589,157.26,157.22,15.9006]
[1727730515858,6.3589,157.26,157.22,22.67672532]
[1727730516957,6.3589,157.26,157.22,22.261]
[1727730518558,6.3589,157.26,157.22,22.67671858]
[1727730518860,6.3589,157.26,157.22,22.261]
[1727730519154,23.776884,157.29,157.23,0.41547546]
[1727730519335,6.3585,157.27,157.23,0.41547546]
[1727730520660,6.3585,157.27,157.23,6.77547546]
[1727730522060,6.3585,157.27,157.23,6.36]
[1727730522560,6.3585,157.27,157.23,6.77547878]
[1727730523056,6.3585,157.27,157.23,6.77547763]
[1727730523362,6.3585,157.27,157.22,22.2609]
[1727730523539,6.3585,157.27,157.22,15.9006]
[1727730523745,6.3585,157.27,157.23,6.3598]
[1727730524651,6.3582,157.28,157.24,6.3596]
[1727730524852,6.3582,157.28,157.24,6.77488976]
[1727730528073,6.3582,157.28,157.24,6.3596]
[1727730530370,6.3585,157.27,157.23,17.6137631]
[1727730530669,6.3585,157.27,157.24,0.41529184]
[1727730531381,6.3585,157.27,157.23,17.6137631]
[1727730533459,23.776884,157.29,157.22,27.1544631]
[1727730533768,6.3581,157.28,157.24,6.3595]
[1727730534141,0.8488074,157.3,157.23,11.2538631]
[1727730534345,0.8488074,157.3,157.24,16.31401036]
[1727730534563,6.3577,157.29,157.25,6.3591]
[1727730535159,0.8488074,157.3,157.24,15.899]
[1727730535357,6.3582,157.28,157.24,22.2586]
[1727730535556,6.3582,157.28,157.24,15.899]
[1727730535761,0.8488074,157.3,157.24,15.899]
[1727730535976,6.3581,157.28,157.24,22.2584]
[1727730537350,6.3581,157.28,157.25,0.41513082]
[1727730537770,6.3581,157.28,157.24,22.2584]
[1727730538271,6.3584,157.27,157.25,0.41510981]
[1727730538951,6.3584,157.27,157.24,15.899]
[1727730539150,6.3584,157.27,157.25,0.4151085]
[1727730539781,6.3584,157.27,157.24,15.899]
[1727730540080,6.3584,157.27,157.25,0.41510652]
[1727730540447,6.3584,157.27,157.24,15.899]
[1727730540972,25.36651393,157.29,157.23,15.7075]
[1727730541176,6.359,157.26,157.23,15.7075]
[1727730542279,6.359,157.26,157.21,15.9015]
[1727730542280,23.776884,157.29,157.2,6.427]
[1727730542578,6.3603,157.23,157.2,6.427]
[1727730542756,15.8963,157.27,157.2,6.427]
[1727730542951,6.3598,157.24,157.21,0.41594009]
[1727730543158,6.3598,157.24,157.2,12.7882]
[1727730543666,6.3598,157.24,157.21,0.41596992]
[1727730544069,6.3598,157.24,157.2,12.7882]
[1727730544267,6.3598,157.24,157.21,0.41596776]
[1727730544464,6.3598,157.24,157.2,12.7882]
[1727730545058,6.3592,157.26,157.21,0.41597013]
[1727730545267,6.3592,157.26,157.22,6.3604]
[1727730546961,6.3593,157.25,157.21,6.3608]
[1727730547979,1.58989631,157.27,157.2,6.427]
[1727730548159,6.3597,157.24,157.2,12.7882]
[1727730548367,6.3597,157.24,157.21,0.4159678]
[1727730548962,6.3597,157.24,157.2,12.7882]
[1727730550567,6.3604,157.23,157.19,38.6072]
[1727730550780,1.58998909,157.25,157.19,32.2455]
[1727730550984,6.3605,157.22,157.19,15.904]
[1727730551184,23.776884,157.24,157.19,15.904]
[1727730551481,6.3602,157.23,157.19,15.904]
[1727730553088,6.3602,157.23,157.19,22.2656]
[1727730554191,6.3602,157.23,157.2,0.41634936]
[1727730554682,6.3602,157.23,157.19,22.2656]
[1727730556191,6.3605,157.22,157.19,15.904]
[1727730556689,6.3605,157.22,157.16,38.4088]
[1727730556690,23.776884,157.24,157.16,38.4088]
[1727730556879,23.776884,157.26,157.21,15.9018]
[1727730557083,31.8004,157.29,157.22,0.41573572]
[1727730557271,31.8004,157.29,157.22,11.66959882]
[1727730557584,6.3591,157.26,157.22,18.03009882]
[1727730558481,1.58987488,157.28,157.22,11.2538631]
[1727730558693,6.3594,157.25,157.22,11.2538631]
[1727730558893,6.3594,157.25,157.21,22.2626]
[1727730560095,6.3597,157.24,157.21,15.9018]
[1727730560388,1.58998223,157.26,157.18,11.2538631]
[1727730560698,6.3601,157.23,157.19,6.3616]
[1727730562402,1.58998223,157.26,157.18,15.9048]
[1727730562693,6.3614,157.2,157.16,12.9578]
[1727730563496,6.361,157.21,157.16,12.9578]
[1727730564296,6.361,157.21,157.17,6.3624]
[1727730564798,6.361,157.21,157.18,0.41672576]
[1727730565695,6.361,157.21,157.17,6.3624]
[1727730569803,6.361,157.21,157.17,17.6162631]
[1727730570392,6.361,157.21,157.18,0.41672628]
[1727730573410,6.361,157.21,157.17,17.6162631]
[1727730574098,6.361,157.21,157.18,0.41672366]
[1727730574892,6.361,157.21,157.17,17.6162631]
[1727730575405,6.361,157.21,157.18,0.4167249]
[1727730575805,6.361,157.21,157.17,17.6162631]
[1727730577297,6.3613,157.2,157.17,6.3624]
[1727730578814,6.3613,157.2,157.16,17.8489631]
[1727730579106,6.3613,157.2,157.16,24.2117631]
[1727730579813,15.9007,157.23,157.16,6.5951]
[1727730580010,6.3622,157.18,157.15,31.2852]